bitfinex-derivatives/quotes_BTCF0:USTF0_20241003
["timestamp","ask_amount","ask_price","bid_price","bid_amount"]
[1727975044953,0.29,59974.0,59966.0,0.00250132]
[1727975045158,0.29,59967.0,59966.0,0.00250132]
[1727975045454,0.444166,59979.0,59966.0,0.00250132]
[1727975045455,0.29,59972.0,59966.0,0.00250132]
[1727975045648,0.29,59972.0,59970.0,0.083378]
[1727975045847,0.373371,59976.0,59970.0,0.083378]
[1727975046148,0.29,59976.0,59974.0,0.083373]
[1727975046347,0.39115642,59979.0,59960.0,0.373393]
[1727975046563,0.39115642,59979.0,59965.0,0.083385]
[1727975046564,0.3608,59979.0,59965.0,0.083385]
[1727975046759,0.3608,59979.0,59966.0,0.083384]
[1727975047058,0.04905298,59983.0,59980.0,0.083365]
[1727975047264,0.014,59983.0,59981.0,0.083363]
[1727975047460,0.083369,59978.0,59971.0,0.3608]
[1727975047659,0.29,59982.0,59971.0,0.3608]
[1727975047858,0.29,59982.0,59976.0,0.08337]
[1727975048056,0.373362,59982.0,59978.0,0.083367]
[1727975048267,0.373362,59982.0,59980.0,0.001]
[1727975048566,0.29,59982.0,59981.0,0.001]
[1727975048953,0.021,59983.0,59981.0,0.001]
[1727975049264,0.021,59983.0,59982.0,0.444162]
[1727975049454,0.021,59983.0,59982.0,0.582062]
[1727975049656,0.00250142,59988.0,59987.0,0.083355]
[1727975049855,0.29,60002.0,60001.0,0.083336]
[1727975050063,0.29,60002.0,59988.0,0.083353]
[1727975050064,0.083336,60001.0,59987.0,0.083355]
[1727975050267,0.29,59996.0,59987.0,0.083355]
[1727975050558,1.50084,60000.0,59987.0,0.083355]
[1727975050757,0.29,59998.0,59987.0,0.083355]
[1727975050958,0.29,59998.0,59984.0,0.02970747]
[1727975051261,1.50084,60000.0,59983.0,0.1354]
[1727975051262,0.00084,60000.0,59999.0,0.083338]
[1727975051462,0.01,60001.0,60000.0,0.083337]
[1727975052352,0.03306557,60015.0,59999.0,0.1331]
[1727975052660,0.00250128,60015.0,60014.0,0.083318]
[1727975054154,0.3608,60024.0,60014.0,0.083318]
[1727975054354,0.6508,60029.0,60014.0,0.083318]
[1727975054355,0.00088,60029.0,60028.0,0.083298]
[1727975054649,0.3608,60042.0,60040.0,0.083281]
[1727975054650,1.5,60041.0,60040.0,0.083281]
[1727975055049,1.5,60041.0,60028.0,0.3608]
[1727975055050,2.59968,60041.0,60028.0,0.3608]
[1727975055262,2.59968,60041.0,60035.0,0.083288]
[1727975055263,0.29,60036.0,60035.0,0.083288]
[1727975055458,1.79088,60041.0,60040.0,0.083281]
[1727975055757,1.5,60041.0,60040.0,0.083281]
[1727975055960,1.79,60041.0,60032.0,0.083292]
[1727975056160,0.29,60034.0,60033.0,0.083291]
[1727975056353,0.29,60040.0,60028.0,0.3608]
[1727975056558,0.29,60040.0,60039.0,0.083283]
[1727975056964,0.29,60040.0,60029.0,0.083297]
[1727975056965,1.50784,60041.0,60040.0,0.083281]
[1727975057261,1.513,60041.0,60040.0,0.083281]
[1727975057460,1.506,60041.0,60040.0,0.083281]
[1727975057762,0.006,60041.0,60040.0,0.083281]
[1727975057969,0.006,60040.0,60039.0,0.084283]
[1727975059658,0.013,60041.0,60040.0,0.084281]
[1727975060060,0.006,60041.0,60040.0,0.084281]
[1727975060260,0.006,60041.0,60040.0,0.583961]
[1727975060461,0.083262,60054.0,60052.0,0.083264]
[1727975060666,0.083262,60054.0,60042.0,0.29]
[1727975061069,1.53054683,60056.0,60055.0,0.083261]
[1727975061267,0.02962683,60056.0,60055.0,0.083261]
[1727975061471,0.00249897,60064.0,60055.0,0.083261]
[1727975061663,0.00249897,60064.0,60062.0,0.08325]
[1727975061863,1.5,60063.0,60062.0,0.08325]
[1727975062260,0.00249897,60064.0,60055.0,0.08326]
[1727975062465,0.08323,60078.0,60055.0,0.08326]
[1727975062466,0.29,60081.0,60067.0,0.055]
[1727975062671,0.12906854,60147.0,60093.0,0.3608]
[1727975062965,0.3608,60166.0,60093.0,0.3608]
[1727975062966,0.00092,60114.0,60112.0,0.29]
[1727975063171,0.29,60124.0,60105.0,0.08319]
[1727975063375,0.29,60130.0,60106.0,0.29]
[1727975063873,0.00249596,60137.0,60099.0,0.00249596]
[1727975063874,0.00249596,60137.0,60117.0,0.29]
[1727975064069,0.00249596,60137.0,60124.0,0.29]
[1727975064258,0.00249596,60137.0,60099.0,0.00249596]
[1727975064259,0.00249596,60137.0,60129.0,0.29]
[1727975064561,0.1297,60146.0,60129.0,0.29]
[1727975064763,0.29,60135.0,60114.0,0.373179]
[1727975064960,0.1297,60146.0,60114.0,0.083179]
[1727975064961,0.295,60130.0,60114.0,0.083179]
[1727975065169,0.11071447,60129.0,60112.0,0.29]
[1727975065369,0.11071447,60128.0,60112.0,0.29]
[1727975065565,0.17594545,60113.0,60112.0,0.373182]
[1727975065762,0.005,60130.0,60121.0,0.083168]
[1727975065970,0.05105789,60129.0,60121.0,0.083168]
[1727975066172,0.05105789,60128.0,60123.0,0.083166]
[1727975066474,0.05105789,60127.0,60125.0,0.083163]
[1727975066667,0.05105789,60126.0,60125.0,0.083163]
[1727975067074,0.006,60137.0,60134.0,0.08315]
[1727975067261,0.006,60137.0,60132.0,0.3300952]
[1727975067262,0.00249498,60146.0,60136.0,0.29]
[1727975067485,0.00249498,60146.0,60143.0,0.083138]
[1727975068071,0.29,60154.0,60134.0,0.29]
[1727975068072,0.29,60154.0,60134.0,0.373151]
[1727975068273,0.29,60149.0,60135.0,0.083149]
[1727975068574,0.29,60149.0,60132.0,0.3300952]
[1727975068575,0.29,60153.0,60138.0,0.083145]
[1727975068765,0.29,60153.0,60139.0,0.083144]
[1727975068967,0.29,60149.0,60139.0,0.083144]
[1727975069268,0.006,60146.0,60143.0,0.001]
[1727975069469,0.29,60144.0,60143.0,0.001]
[1727975069877,0.006,60146.0,60144.0,0.3608]
[1727975070080,0.083088,60180.0,60162.0,0.083112]
[1727975070264,0.29,60179.0,60174.0,0.3608]
[1727975070469,1.5323528,60175.0,60174.0,0.28864001]
[1727975070663,2.9209128,60175.0,60174.0,0.28864001]
[1727975071068,2.2910545,60175.0,60174.0,0.28864001]
[1727975071471,2.0010545,60175.0,60174.0,0.28864001]
[1727975071775,0.0074945,60175.0,60174.0,0.37273601]
[1727975071970,0.0074945,60175.0,60174.0,0.28964001]
[1727975071971,1.1060545,60175.0,60174.0,0.28964001]
[1727975072164,0.0074945,60175.0,60174.0,0.37273601]
[1727975072364,0.0074945,60175.0,60174.0,0.28964001]
[1727975072570,1.3960545,60175.0,60174.0,0.28964001]
[1727975072973,0.083096,60174.0,60171.0,0.3608]
[1727975073173,0.083099,60172.0,60171.0,0.3608]
[1727975073467,0.083099,60172.0,60161.0,0.3608]
[1727975073468,0.49856,60172.0,60161.0,0.3608]
[1727975073668,0.083118,60159.0,60151.0,0.3608]
[1727975073887,0.29,60152.0,60151.0,0.3608]
[1727975074184,0.373126,60152.0,60151.0,0.3608]
[1727975074367,1.38876,60152.0,60151.0,0.3608]
[1727975074677,1.471886,60152.0,60151.0,0.3608]
[1727975074998,1.471886,60152.0,60121.0,0.02947104]
[1727975074999,1.74956,60152.0,60139.0,0.3608]
[1727975075188,0.29,60140.0,60133.0,0.083153]
[1727975075482,0.443935,60146.0,60120.0,0.3608]
[1727975075483,0.29,60135.0,60120.0,0.3608]
[1727975075675,0.3608,60134.0,60120.0,0.3608]
[1727975076279,0.29,60140.0,60125.0,0.3608]
[1727975076582,0.3608,60141.0,60139.0,0.083144]
[1727975076880,0.3608,60141.0,60128.0,0.29]
[1727975077070,0.3608,60141.0,60140.0,0.083143]
[1727975078471,0.3688,60141.0,60140.0,0.083143]
[1727975078882,1.8798,60141.0,60140.0,0.083143]
[1727975079178,1.519,60141.0,60140.0,0.083143]
[1727975079382,1.508,60141.0,60140.0,0.083143]
[1727975079577,1.52,60141.0,60140.0,0.084143]
[1727975079970,0.29,60147.0,60132.0,0.3608]
[1727975080170,0.02,60141.0,60140.0,0.084143]
[1727975080571,0.02,60141.0,60132.0,0.3608]
[1727975080767,0.29,60133.0,60128.0,0.08316]
[1727975080972,1.5,60132.0,60130.0,0.083156]
[1727975081373,1.5,60132.0,60126.0,0.443962]
[1727975081676,1.5,60132.0,60126.0,0.3608]
[1727975081867,0.083155,60131.0,60126.0,0.3608]
[1727975082572,0.083155,60131.0,60126.0,0.3638]
[1727975082777,1.50084,60132.0,60128.0,0.08316]
[1727975082972,1.5,60132.0,60131.0,0.083155]
[1727975083974,1.502,60132.0,60131.0,0.083155]
[1727975084882,0.002,60132.0,60131.0,0.083155]
[1727975085879,0.002,60132.0,60131.0,0.085155]
[1727975086081,0.375154,60132.0,60131.0,0.002]
[1727975086378,0.083166,60124.0,60112.0,0.1465]
[1727975086582,1.334954,60132.0,60121.0,0.083169]
[1727975086583,1.5,60123.0,60121.0,0.083169]
[1727975086777,1.5,60123.0,60122.0,0.083168]
[1727975087285,0.29,60126.0,60124.0,0.083165]
[1727975087673,0.29,60126.0,60112.0,0.22968]
[1727975087984,0.29,60126.0,60125.0,0.083164]
[1727975088182,0.39413819,60132.0,60125.0,0.28109273]
[1727975088183,0.39269824,60132.0,60125.0,0.28109273]
[1727975088383,0.39269824,60132.0,60122.0,0.001]
[1727975088384,0.38969824,60132.0,60131.0,0.0981334]
[1727975088682,0.38969824,60132.0,60131.0,0.28109273]
[1727975088683,0.47285224,60132.0,60131.0,0.28109273]
[1727975088880,1.85936005,60132.0,60131.0,0.36424773]
[1727975089280,1.5,60132.0,60131.0,0.36424773]
[1727975089478,1.5,60132.0,60131.0,0.67906678]
[1727975089673,0.01,60132.0,60131.0,0.54706984]
[1727975089882,0.01,60132.0,60131.0,0.67834899]
[1727975090180,0.01,60132.0,60131.0,0.54706984]
[1727975090376,0.01,60132.0,60131.0,0.75641529]
[1727975090578,0.01,60132.0,60131.0,0.54706984]
[1727975090773,0.018,60132.0,60131.0,0.54806984]
[1727975091481,0.018,60132.0,60131.0,0.75741153]
[1727975091679,0.018,60132.0,60131.0,1.18997219]
[1727975091883,0.018,60132.0,60131.0,1.00804037]
[1727975092683,0.018,60132.0,60131.0,1.00704037]
[1727975092980,0.083128,60151.0,60131.0,2.46676037]
[1727975093192,0.083135,60146.0,60144.0,0.083137]
[1727975093386,0.083135,60146.0,60144.0,1.005883]
[1727975093579,0.083118,60158.0,60144.0,1.005883]
[1727975093779,0.083131,60149.0,60144.0,1.005883]
[1727975093979,0.083128,60151.0,60144.0,1.005883]
[1727975094277,0.083129,60150.0,60144.0,1.005883]
[1727975094582,0.083131,60149.0,60144.0,1.005883]
[1727975095281,0.05104413,60148.0,60144.0,0.083137]
[1727975095482,0.00549546,60145.0,60144.0,0.083137]
[1727975095882,0.05853959,60145.0,60144.0,0.083137]
[1727975096688,0.05353959,60145.0,60144.0,0.083137]
[1727975097290,0.005,60145.0,60144.0,0.083137]
[1727975097497,0.083133,60147.0,60144.0,0.001]
[1727975097788,0.003,60145.0,60144.0,0.084137]
[1727975098187,0.083133,60147.0,60144.0,0.002]
[1727975098386,0.001,60145.0,60144.0,0.085137]
[1727975098895,0.001,60145.0,60144.0,0.002]
[1727975098896,0.086136,60145.0,60144.0,0.002]
[1727975099479,1.588136,60145.0,60144.0,0.003]
[1727975099885,1.588136,60145.0,60144.0,0.001]
[1727975100189,1.507,60145.0,60144.0,0.001]
[1727975100488,1.507,60145.0,60144.0,0.084137]
[1727975100694,1.505,60145.0,60144.0,0.084137]
[1727975100893,1.585136,60145.0,60144.0,0.085137]
[1727975101187,1.590136,60145.0,60144.0,0.002]
[1727975101390,1.585136,60145.0,60144.0,0.001]
[1727975101591,0.083139,60143.0,60142.0,0.3608]
[1727975101888,0.13418655,60143.0,60142.0,0.44394]
[1727975102291,0.13418655,60143.0,60142.0,0.3608]
[1727975102484,0.05104755,60143.0,60142.0,0.44394]
[1727975103089,0.05104755,60143.0,60142.0,0.72492944]
[1727975103283,0.005,60145.0,60144.0,0.083137]
[1727975103493,0.005,60145.0,60144.0,0.30933186]
[1727975103692,0.005,60145.0,60144.0,0.20987037]
[1727975103693,0.002,60145.0,60144.0,0.20987037]
[1727975103992,0.002,60145.0,60144.0,0.36410583]
[1727975104390,0.17932786,60147.0,60146.0,0.083135]
[1727975104594,0.17932786,60147.0,60146.0,0.36410383]
[1727975105096,1.50084,60157.0,60156.0,0.083121]
[1727975105097,0.00084,60157.0,60156.0,0.083121]
[1727975105290,0.083103,60169.0,60167.0,0.083106]
[1727975105484,0.083103,60169.0,60167.0,0.12672553]
[1727975105691,0.0024941,60171.0,60170.0,0.083102]
[1727975105989,0.0024941,60171.0,60170.0,0.20982753]
[1727975106398,0.0024941,60171.0,60170.0,1.69781493]
[1727975106598,0.083081,60186.0,60170.0,1.69781493]
[1727975106599,0.08308,60186.0,60177.0,0.29]
[1727975106795,0.00249311,60189.0,60185.0,0.083081]
[1727975106994,0.08556811,60189.0,60188.0,0.06618504]
[1727975107189,0.08556811,60189.0,60186.0,0.083079]
[1727975107389,0.08556811,60189.0,60186.0,0.14926404]
[1727975107591,0.00249311,60189.0,60187.0,0.06618504]
[1727975107804,0.083077,60188.0,60187.0,0.06610228]
[1727975108098,0.08308,60186.0,60185.0,0.001]
[1727975108305,0.00449311,60189.0,60185.0,0.001]
[1727975108503,0.00449311,60189.0,60188.0,0.083077]
[1727975108688,0.00449311,60189.0,60188.0,0.65324941]
[1727975108897,0.083058,60202.0,60201.0,0.083059]
[1727975109095,0.083058,60202.0,60188.0,1.16923623]
[1727975109096,0.083059,60201.0,60199.0,0.06601887]
[1727975109397,0.32021564,60210.0,60198.0,0.06592034]
[1727975109398,0.03021564,60210.0,60198.0,0.06592034]
[1727975109698,0.083045,60212.0,60198.0,0.06592034]
[1727975109699,0.00249204,60213.0,60205.0,0.6508]
[1727975110000,0.00249204,60213.0,60210.0,0.01606964]
[1727975110300,0.00249204,60213.0,60205.0,0.3608]
[1727975110301,0.083045,60211.0,60205.0,0.3608]
[1727975110501,0.002,60210.0,60205.0,0.3608]
[1727975110701,0.002,60210.0,60209.0,0.083048]
[1727975111201,0.00249204,60213.0,60209.0,0.083048]
[1727975111403,0.00549204,60213.0,60210.0,0.002]
[1727975111608,0.083045,60211.0,60210.0,0.002]
[1727975111794,0.00549204,60213.0,60210.0,0.002]
[1727975111795,0.003,60213.0,60210.0,0.002]
[1727975111997,0.002,60213.0,60212.0,0.373044]
[1727975112305,0.002,60213.0,60212.0,0.733844]
[1727975112524,0.002,60213.0,60212.0,1.832084]
[1727975112807,0.083018,60231.0,60225.0,0.083025]
[1727975113005,1.5,60233.0,60228.0,0.083021]
[1727975113006,0.00084,60233.0,60228.0,0.083021]
[1727975113299,0.083009,60237.0,60232.0,0.29]
[1727975113506,1.5,60238.0,60233.0,0.083014]
[1727975113697,1.5,60238.0,60232.0,0.29]
[1727975113900,0.3608,60236.0,60219.0,0.3608]
[1727975114096,0.083033,60220.0,60219.0,0.3608]
[1727975114912,1.583033,60220.0,60219.0,0.3608]
[1727975115305,1.584033,60220.0,60219.0,0.3618]
[1727975115806,1.584033,60220.0,60219.0,0.444834]
[1727975115807,0.001,60220.0,60219.0,0.444834]
[1727975116000,0.001,60220.0,60219.0,0.3618]
[1727975117109,0.443812,60236.0,60223.0,0.083028]
[1727975117406,0.09165196,60235.0,60219.0,0.10505962]
[1727975117611,0.09165196,60234.0,60219.0,0.10505962]
[1727975117807,0.001,60220.0,60219.0,0.62709362]
[1727975118000,0.09265196,60220.0,60219.0,0.18709362]
[1727975118202,0.09165196,60220.0,60219.0,0.18809362]
[1727975118509,0.17760828,60220.0,60219.0,0.18809362]
[1727975118697,0.33911256,60220.0,60219.0,0.68625362]
[1727975118901,0.09165196,60220.0,60219.0,1.28625362]
[1727975119202,0.04167216,60220.0,60219.0,1.28625362]
[1727975119600,0.1453977,60223.0,60222.0,0.08303]
[1727975119796,0.1453977,60224.0,60223.0,0.083028]
[1727975120023,0.17760828,60232.0,60223.0,0.083028]
[1727975120024,0.16150428,60230.0,60229.0,0.08302]
[1727975120197,0.16150428,60234.0,60233.0,0.083015]
[1727975121310,0.16150428,60237.0,60233.0,1.181095]
[1727975121501,0.17760828,60241.0,60236.0,0.44]
[1727975121703,0.00249093,60242.0,60241.0,0.083004]
[1727975122710,0.00249093,60242.0,60236.0,0.44]
[1727975122900,0.00249093,60242.0,60233.0,0.084015]
[1727975122901,0.17757495,60238.0,60237.0,0.083009]
[1727975123101,0.00249093,60242.0,60237.0,0.083009]
[1727975123411,0.083013,60234.0,60233.0,0.003]
[1727975123909,0.083024,60226.0,60220.0,0.083032]
[1727975124110,0.17753443,60228.0,60220.0,0.083032]
[1727975124409,0.083023,60227.0,60223.0,0.083027]
[1727975124714,0.083026,60225.0,60219.0,0.18709362]
[1727975124908,0.17759481,60222.0,60221.0,0.083031]
[1727975125305,0.02945669,60233.0,60219.0,0.10405962]
[1727975125504,0.3608,60234.0,60224.0,0.083026]
[1727975125505,0.083021,60229.0,60224.0,0.083026]
[1727975125707,0.39128122,60234.0,60224.0,0.083026]
[1727975126116,0.39128122,60234.0,60219.0,0.10405962]
[1727975126117,0.083024,60226.0,60219.0,0.10405962]
[1727975126410,0.39128122,60234.0,60219.0,0.10405962]
[1727975126707,0.083019,60230.0,60229.0,0.08302]
[1727975127011,0.083022,60228.0,60224.0,0.083026]
[1727975127211,0.39128122,60234.0,60219.0,0.10405962]
[1727975127508,0.3608,60234.0,60233.0,0.083015]
[1727975127918,0.3608,60234.0,60232.0,0.083015]
[1727975128104,0.443813,60234.0,60233.0,0.083015]
[1727975128306,0.083013,60234.0,60233.0,0.083015]
[1727975128613,0.02939538,60237.0,60224.0,0.083026]
[1727975128807,0.002,60234.0,60233.0,0.001]
[1727975129007,1.502,60234.0,60233.0,0.084015]
[1727975129320,0.002,60234.0,60233.0,0.084015]
[1727975129498,0.002,60234.0,60233.0,0.524015]
[1727975130117,0.002,60234.0,60233.0,0.884815]
[1727975130311,0.002,60234.0,60233.0,1.982895]
[1727975130512,0.001,60234.0,60233.0,1.985895]
[1727975130712,0.001,60234.0,60233.0,1.385895]
[1727975130916,0.3608,60253.0,60233.0,2.26368]
[1727975131117,0.4565,60253.0,60252.0,0.082988]
[1727975131322,0.8173,60259.0,60243.0,0.3608]
[1727975131616,0.082986,60255.0,60243.0,0.3608]
[1727975131914,0.082986,60255.0,60252.0,0.082987]
[1727975132123,1.5,60258.0,60254.0,0.082985]
[1727975132313,0.083987,60253.0,60252.0,0.001]
[1727975132919,0.083987,60253.0,60236.0,0.3608]
[1727975132920,1.45972,60253.0,60236.0,0.3608]
[1727975133114,0.082993,60249.0,60248.0,0.082993]
[1727975133312,0.3618,60253.0,60241.0,0.44]
[1727975133313,0.444788,60253.0,60241.0,0.44]
[1727975133516,0.444788,60253.0,60250.0,0.082991]
[1727975133718,0.08299,60251.0,60250.0,0.082991]
[1727975134114,0.083988,60253.0,60247.0,0.082995]
[1727975134323,0.082994,60248.0,60247.0,0.082995]
[1727975134712,0.082994,60248.0,60241.0,0.3608]
[1727975134713,0.082989,60252.0,60250.0,0.083991]
[1727975134907,0.083988,60253.0,60252.0,0.082988]
[1727975134908,0.001,60253.0,60252.0,0.082988]
[1727975135514,0.001,60253.0,60250.0,0.001]
[1727975135724,0.08299,60251.0,60250.0,0.001]
[1727975136218,0.08299,60251.0,60248.0,0.082994]
[1727975136219,0.083994,60248.0,60247.0,0.002]
[1727975136421,0.083994,60248.0,60247.0,0.084995]
[1727975136619,0.083994,60248.0,60247.0,0.002]
[1727975136919,0.083994,60248.0,60241.0,0.3608]
[1727975136920,0.08399,60251.0,60250.0,0.001]
[1727975137821,0.4035506,60254.0,60247.0,0.001]
[1727975137822,0.082993,60249.0,60248.0,0.082994]
[1727975138225,0.082993,60249.0,60226.0,0.3608]
[1727975138226,0.49796,60248.0,60226.0,0.3608]
[1727975138424,0.083004,60241.0,60226.0,0.3608]
[1727975138613,0.29,60242.0,60226.0,0.3608]
[1727975138811,0.08301,60237.0,60235.0,0.083011]
[1727975139017,1.50084,60241.0,60235.0,0.083011]
[1727975139217,1.5,60241.0,60227.0,0.29]
[1727975139720,1.5,60241.0,60226.0,0.3608]
[1727975140024,0.08301,60237.0,60226.0,0.3608]
[1727975140326,0.11052544,60236.0,60228.0,0.42299914]
[1727975140522,0.11052659,60235.0,60234.0,0.083013]
[1727975140731,0.11052659,60235.0,60234.0,0.0734882]
[1727975141824,0.11152659,60235.0,60234.0,0.0734882]
[1727975142522,0.083021,60229.0,60226.0,0.443823]
[1727975142724,0.11052659,60228.0,60227.0,0.083023]
[1727975143423,0.19354859,60228.0,60227.0,0.083023]
[1727975144420,0.11052659,60228.0,60227.0,0.084023]
[1727975145719,0.19354859,60228.0,60227.0,0.001]
[1727975145919,0.19354859,60228.0,60227.0,0.084023]
[1727975146225,0.19454859,60228.0,60227.0,0.003]
[1727975146421,0.083023,60227.0,60226.0,0.22503804]
[1727975146619,0.19354959,60227.0,60226.0,0.22503804]
[1727975147428,0.04147574,60227.0,60226.0,0.4341146]
[1727975147819,0.04347574,60227.0,60226.0,0.30756163]
[1727975148023,0.04447574,60227.0,60226.0,0.30756163]
[1727975149324,0.04847574,60227.0,60226.0,0.30756163]
[1727975149725,0.04847574,60227.0,60226.0,0.08252359]
[1727975149932,0.083026,60225.0,60223.0,0.08252359]
[1727975150121,0.083026,60225.0,60224.0,0.083027]
[1727975150322,0.007,60227.0,60221.0,0.16555459]
[1727975150519,0.083024,60226.0,60225.0,0.06618597]
[1727975151021,0.083026,60225.0,60224.0,0.06618597]
[1727975151230,0.090023,60227.0,60223.0,0.06618597]
[1727975151231,0.083027,60224.0,60223.0,0.06618597]
[1727975151430,0.083031,60221.0,60220.0,0.06618597]
[1727975151819,0.083033,60220.0,60219.0,0.14921897]
[1727975152240,0.083033,60220.0,60219.0,0.083033]
[1727975152533,0.083033,60220.0,60211.0,0.3608]
[1727975152534,0.083035,60218.0,60215.0,0.06618597]
[1727975152831,0.083035,60218.0,60217.0,0.083037]
[1727975153334,1.583035,60218.0,60217.0,0.083037]
[1727975153623,0.083035,60218.0,60217.0,0.083037]
[1727975154326,0.083035,60218.0,60217.0,0.085037]
[1727975154916,1.52721138,60220.0,60217.0,0.085037]
[1727975154917,1.50084,60220.0,60217.0,0.002]
[1727975155121,1.583034,60220.0,60217.0,0.002]
[1727975155323,0.083035,60218.0,60217.0,0.002]
[1727975155632,0.13401846,60218.0,60217.0,0.006]
[1727975155826,0.26327423,60218.0,60217.0,0.006]
[1727975156034,0.083048,60209.0,60208.0,0.083048]
[1727975156332,0.13403949,60209.0,60208.0,0.083048]
[1727975157336,0.13403949,60209.0,60208.0,0.095048]
[1727975158630,0.13503949,60209.0,60208.0,0.107048]
[1727975158831,0.05199149,60209.0,60208.0,0.107048]
[1727975159030,0.05199149,60209.0,60208.0,0.547048]
[1727975159324,0.001,60209.0,60208.0,1.045328]
[1727975159525,0.05098404,60209.0,60208.0,2.03382391]
[1727975159733,0.18002877,60218.0,60217.0,0.083037]
[1727975159927,0.18002877,60219.0,60218.0,0.083035]
[1727975160128,0.18002877,60219.0,60212.0,0.083042]
[1727975160129,0.18002877,60220.0,60219.0,0.083034]
[1727975160537,0.05957445,60223.0,60222.0,0.08303]
[1727975160835,0.3608,60224.0,60208.0,0.3728]
[1727975160836,0.083038,60217.0,60208.0,0.3728]
[1727975161029,0.083044,60212.0,60211.0,0.083044]
[1727975161228,0.17987864,60214.0,60208.0,0.3728]
[1727975161432,0.083048,60209.0,60208.0,0.012]
[1727975161628,0.083048,60209.0,60208.0,0.095049]
[1727975161831,0.17985829,60209.0,60208.0,0.095049]
[1727975162031,0.17985829,60210.0,60208.0,0.095049]
[1727975162228,0.373048,60209.0,60208.0,0.00249511]
[1727975162430,1.33009032,60209.0,60206.0,0.06608181]
[1727975162634,1.33009032,60209.0,60196.0,0.3608]
[1727975162635,0.29,60207.0,60205.0,0.06608181]
[1727975162834,0.29,60207.0,60204.0,0.06608181]
[1727975163140,1.5,60210.0,60205.0,0.083052]
[1727975163440,1.5,60210.0,60206.0,0.083051]
[1727975163441,0.29,60208.0,60206.0,0.083051]
[1727975163627,0.29,60208.0,60201.0,0.06608181]
[1727975163837,0.083051,60207.0,60205.0,0.001]
[1727975164035,0.3608,60206.0,60205.0,0.001]
[1727975164233,0.443852,60206.0,60205.0,0.003]
[1727975164437,1.542132,60206.0,60205.0,0.001]
[1727975164738,1.45908,60206.0,60199.0,0.083061]
[1727975164937,0.29,60201.0,60199.0,0.083061]
[1727975165331,0.29,60201.0,60200.0,0.08306]
[1727975166129,0.29,60201.0,60197.0,0.083064]
[1727975166541,0.083064,60198.0,60195.0,0.08252359]
[1727975166730,0.29,60196.0,60195.0,0.16559059]
[1727975167835,0.294,60196.0,60195.0,0.16659059]
[1727975168235,0.004,60196.0,60195.0,0.16659059]
[1727975168943,0.005,60196.0,60195.0,0.16659059]
[1727975169340,0.002,60196.0,60195.0,0.66395059]
[1727975169647,0.0274496,60209.0,60208.0,0.083049]
[1727975169841,0.00249229,60210.0,60205.0,0.083053]
[1727975170147,0.03012032,60210.0,60209.0,0.083048]
[1727975170445,0.40316632,60210.0,60209.0,0.083048]
[1727975170650,0.40316632,60210.0,60197.0,0.06606958]
[1727975170651,0.32012032,60210.0,60197.0,0.06606958]
[1727975170949,0.32012032,60210.0,60200.0,0.08306]
[1727975170950,0.29,60201.0,60200.0,0.08306]
[1727975171133,0.29,60201.0,60197.0,0.06606958]
[1727975171134,0.083063,60199.0,60198.0,0.083063]
[1727975171646,0.6508,60201.0,60200.0,0.08306]
[1727975171843,0.6508,60201.0,60197.0,0.06606958]
[1727975172043,0.083063,60198.0,60197.0,0.14913358]
[1727975172943,0.083062,60200.0,60199.0,0.083061]
[1727975173540,0.38912018,60201.0,60200.0,0.08306]
[1727975173738,0.38824018,60201.0,60200.0,0.08306]
[1727975174436,0.083063,60199.0,60197.0,0.15013358]
[1727975174642,0.083063,60198.0,60197.0,0.06706958]
[1727975175045,0.47213918,60201.0,60200.0,0.08306]
[1727975175342,0.47129918,60201.0,60200.0,0.08306]
[1727975175548,0.38824018,60201.0,60197.0,0.001]
[1727975175748,0.38824018,60201.0,60200.0,0.08306]
[1727975175749,0.47130018,60201.0,60200.0,0.08306]
[1727975176251,0.47130018,60201.0,60200.0,0.09006]
[1727975176548,0.38824018,60201.0,60200.0,0.08706]
[1727975176849,0.40024018,60201.0,60200.0,0.08406]
[1727975177840,0.012,60201.0,60200.0,0.37406]
[1727975178140,0.6868,60216.0,60200.0,0.39744578]
[1727975178141,0.02653715,60215.0,60200.0,0.39744578]
[1727975178340,0.00084,60214.0,60213.0,0.1656675]
[1727975178647,0.083041,60214.0,60213.0,0.20922643]
[1727975178850,0.083041,60214.0,60212.0,0.0826343]
[1727975179051,0.10954841,60214.0,60213.0,0.083042]
[1727975179348,0.10954841,60214.0,60213.0,0.20964074]
[1727975179550,0.11254841,60214.0,60213.0,0.21027543]
[1727975179743,0.04250741,60214.0,60213.0,0.21164074]
[1727975179945,0.013,60214.0,60213.0,0.21064074]
[1727975180139,0.016,60214.0,60213.0,0.21064074]
[1727975180335,0.0264263,60225.0,60219.0,0.083033]
[1727975180539,0.3608,60226.0,60224.0,0.09922162]
[1727975180749,0.3608,60226.0,60225.0,0.22582036]
[1727975181049,0.3608,60226.0,60225.0,0.30884636]
[1727975181247,0.3608,60226.0,60225.0,0.20962474]
[1727975181849,0.3608,60226.0,60225.0,0.30886489]
[1727975182151,0.00249239,60229.0,60228.0,0.083022]
[1727975182341,0.08551239,60229.0,60228.0,0.20962074]
[1727975183338,0.00249239,60229.0,60228.0,0.20962074]
[1727975183545,0.00249239,60229.0,60228.0,0.21062074]
[1727975184458,0.08551239,60229.0,60228.0,0.12759874]
[1727975185145,0.08551239,60229.0,60228.0,0.001]
[1727975185743,0.08551239,60229.0,60228.0,0.084022]
[1727975185946,0.00249239,60229.0,60228.0,0.084022]
[1727975186152,0.08551239,60229.0,60228.0,0.084022]